bitfinex/quotes_BTCUSD_20240906
["timestamp","ask_amount","ask_price","bid_price","bid_amount"]
[1725631097252,2.10506216,56131.0,56130.0,0.001636]
[1725631097482,1.73475316,56131.0,56130.0,0.001636]
[1725631097698,1.74875316,56131.0,56130.0,0.001636]
[1725631098168,1.73475316,56131.0,56130.0,0.001636]
[1725631098390,2.09106216,56131.0,56130.0,0.001636]
[1725631098607,1.84875316,56131.0,56130.0,0.001636]
[1725631098957,2.20506216,56131.0,56130.0,0.001636]
[1725631098959,2.19106216,56131.0,56130.0,0.001636]
[1725631099198,2.20206216,56131.0,56130.0,0.001636]
[1725631100751,2.19106216,56131.0,56130.0,0.001636]
[1725631100966,2.20506216,56131.0,56130.0,0.001636]
[1725631101419,1.83475316,56131.0,56130.0,0.001636]
[1725631101857,1.84875316,56131.0,56130.0,0.001636]
[1725631102069,1.24726,56123.0,56122.0,0.00386304]
[1725631102296,1.36421322,56123.0,56122.0,0.00386304]
[1725631102535,1.36421322,56123.0,56122.0,0.00186304]
[1725631102819,1.39213943,56123.0,56122.0,0.00186304]
[1725631103033,0.56246621,56123.0,56122.0,0.00186304]
[1725631103459,0.56246621,56123.0,56122.0,0.00386304]
[1725631103702,0.91882621,56123.0,56122.0,0.00186304]
[1725631103947,0.94077943,56123.0,56122.0,0.00186304]
[1725631104367,0.56746621,56123.0,56122.0,0.00186304]
[1725631104636,0.03292621,56123.0,56122.0,0.01834934]
[1725631104839,0.56246621,56123.0,56122.0,0.00186304]
[1725631105269,0.53754,56123.0,56122.0,0.00186304]
[1725631105703,0.8909,56123.0,56122.0,0.00386304]
[1725631105959,1.24726,56123.0,56122.0,0.00186304]
[1725631106162,1.26421322,56123.0,56122.0,0.00186304]
[1725631106410,1.26421322,56123.0,56121.0,0.00186304]
[1725631106411,1.247281,56122.0,56121.0,0.00186304]
[1725631106689,1.26439297,56122.0,56121.0,0.00186304]
[1725631106900,0.90802697,56122.0,56121.0,0.00186304]
[1725631107376,0.90802697,56122.0,56121.0,0.00386304]
[1725631107615,0.89093,56121.0,56120.0,0.08406304]
[1725631108296,0.89093,56121.0,56120.0,0.10537934]
[1725631108752,0.89093,56121.0,56120.0,0.08406304]
[1725631108996,1.247302,56121.0,56120.0,0.08406304]
[1725631109253,0.890995,56117.0,56116.0,0.1291]
[1725631109712,1.247393,56117.0,56116.0,0.1291]
[1725631109945,1.27532118,56117.0,56116.0,0.1291]
[1725631110392,1.27532118,56117.0,56115.0,0.05]
[1725631110393,1.247414,56116.0,56115.0,0.05]
[1725631110648,1.26539918,56116.0,56115.0,0.2109]
[1725631111801,1.26839918,56116.0,56115.0,0.2109]
[1725631112251,0.89101,56116.0,56115.0,0.2109]
[1725631112724,0.89301,56116.0,56115.0,0.2109]
[1725631113460,1.90662438,56116.0,56115.0,0.05]
[1725631113684,2.41832838,56116.0,56115.0,0.05]
[1725631114182,2.90083238,56116.0,56115.0,0.05]
[1725631114443,3.13821238,56116.0,56115.0,0.05]
[1725631114692,3.13621238,56116.0,56115.0,0.05]
[1725631114899,3.13421238,56116.0,56115.0,0.05]
[1725631115137,3.32411238,56116.0,56115.0,1e-06]
[1725631115352,1.89746,56104.0,56103.0,0.001636]
[1725631115578,2.68937881,56104.0,56103.0,0.001636]
[1725631115801,2.68937881,56104.0,56091.0,0.52814515]
[1725631115802,2.407868,56099.0,56091.0,0.52814515]
[1725631116076,2.96563269,56099.0,56091.0,0.00164]
[1725631116300,3.06563269,56099.0,56091.0,0.00164]
[1725631116544,2.84708869,56099.0,56091.0,0.00164]
[1725631116745,2.91174851,56099.0,56091.0,0.00164]
[1725631117012,2.26421451,56099.0,56091.0,0.00164]
[1725631117245,2.19074534,56099.0,56091.0,0.00164]
[1725631117951,1.38718134,56099.0,56092.0,0.1652]
[1725631118199,1.38718134,56099.0,56094.0,0.1306]
[1725631118200,1.03066934,56099.0,56094.0,0.1306]
[1725631118409,1.04466934,56099.0,56094.0,0.1306]
[1725631118884,1.38718134,56099.0,56094.0,0.1306]
[1725631119125,1.39318134,56099.0,56092.0,0.1652]
[1725631119355,1.44340167,56099.0,56092.0,0.1652]
[1725631119586,1.43740167,56099.0,56092.0,0.1652]
[1725631120020,1.38718134,56099.0,56092.0,0.1652]
[1725631121182,1.39318134,56099.0,56092.0,0.1652]
[1725631121613,1.38718134,56099.0,56092.0,0.1652]
[1725631121832,1.39418134,56099.0,56092.0,0.1652]
[1725631123243,1.38718134,56099.0,56092.0,0.1652]
[1725631123448,0.01141559,56104.0,56098.0,0.650054]
[1725631123670,0.01862465,56109.0,56099.0,0.06857001]
[1725631123954,0.27425831,56113.0,56104.0,0.356476]
[1725631124182,0.000816,56120.0,56104.0,0.356476]
[1725631124183,0.178192,56119.0,56114.0,0.178208]
[1725631124410,0.000816,56120.0,56116.0,0.1306]
[1725631124633,0.000816,56120.0,56116.0,0.308801]
[1725631124866,0.000816,56120.0,56116.0,0.1306]
[1725631125323,0.179007,56120.0,56116.0,0.1306]
[1725631125552,0.000816,56120.0,56118.0,0.178194]
[1725631125811,0.003816,56120.0,56119.0,1.26791579]
[1725631126051,0.003816,56120.0,56119.0,1.76113736]
[1725631126273,0.003816,56120.0,56119.0,1.38175236]
[1725631126734,0.003816,56120.0,56119.0,1.77113736]
[1725631127655,0.000816,56120.0,56119.0,1.77113736]
[1725631127902,0.000816,56120.0,56119.0,1.41475236]
[1725631128131,0.001816,56120.0,56119.0,1.41475236]
[1725631128342,0.001816,56120.0,56119.0,1.77113736]
[1725631128560,0.000816,56120.0,56119.0,1.77113736]
[1725631128869,0.001816,56120.0,56119.0,1.77213736]
[1725631129332,0.000816,56120.0,56119.0,1.77113736]
[1725631129557,0.000816,56120.0,56119.0,1.77213736]
[1725631129794,0.001816,56120.0,56119.0,1.77213736]
[1725631130047,0.001816,56120.0,56119.0,1.40575236]
[1725631130273,0.001816,56120.0,56119.0,1.02636736]
[1725631130517,0.001816,56120.0,56119.0,1.40575236]
[1725631130764,0.001816,56120.0,56119.0,1.76213736]
[1725631130984,0.001816,56120.0,56119.0,1.38275236]
[1725631131209,0.000816,56120.0,56119.0,1.38175236]
[1725631131435,0.001816,56120.0,56119.0,1.38275236]
[1725631131690,0.001816,56120.0,56119.0,0.463592]
[1725631131886,0.000816,56120.0,56119.0,1.175362]
[1725631132334,0.001816,56120.0,56119.0,1.176362]
[1725631132797,0.178202,56116.0,56115.0,0.001632]
[1725631133485,0.89101,56116.0,56115.0,0.001632]
[1725631133705,0.55267056,56116.0,56115.0,0.001632]
[1725631133965,0.90907456,56116.0,56115.0,0.001632]
[1725631134423,0.534606,56116.0,56115.0,0.001632]
[1725631134893,0.541606,56116.0,56115.0,0.001632]
[1725631135145,0.185202,56116.0,56115.0,0.001632]
[1725631135361,0.541606,56116.0,56115.0,0.001632]
[1725631135585,0.534606,56116.0,56115.0,0.001632]
[1725631135803,0.541606,56116.0,56115.0,0.001632]
[1725631136026,0.89801,56116.0,56115.0,0.001632]
[1725631136270,1.254414,56116.0,56115.0,0.001632]
[1725631136552,1.52497856,56116.0,56115.0,0.001632]
[1725631137512,1.88138256,56116.0,56115.0,0.001632]
[1725631137752,1.87438256,56116.0,56115.0,0.001632]
[1725631138013,2.71829056,56116.0,56115.0,1e-06]
[1725631138262,2.93892256,56116.0,56115.0,1e-06]
[1725631138476,2.93892256,56116.0,56092.0,0.1558]
[1725631138477,0.89128,56099.0,56092.0,0.1558]
[1725631138926,0.534768,56099.0,56093.0,0.178275]
[1725631139154,0.89128,56099.0,56092.0,0.1558]
[1725631139369,0.56270553,56099.0,56092.0,0.1558]
[1725631139587,0.91921753,56099.0,56092.0,0.1558]
[1725631139811,1.27572953,56099.0,56092.0,0.1558]
[1725631140034,0.91921753,56099.0,56092.0,0.334077]
[1725631140260,0.56270553,56099.0,56092.0,0.1558]
[1725631140489,0.91921753,56099.0,56092.0,0.1558]
[1725631140732,0.20619353,56099.0,56093.0,0.00356513]
[1725631140992,0.02793753,56099.0,56098.0,0.331595]
[1725631141199,0.02793753,56099.0,56098.0,0.2221489]
[1725631141427,0.03493753,56099.0,56098.0,0.153336]
[1725631141690,0.03493753,56099.0,56098.0,0.688113]
[1725631141917,0.02793753,56099.0,56098.0,0.813113]
[1725631142155,1.35909669,56099.0,56098.0,0.001636]
[1725631142370,1.71560869,56099.0,56098.0,0.001636]
[1725631143508,2.17212069,56099.0,56098.0,0.001636]
[1725631143728,2.20006027,56099.0,56098.0,0.001636]
[1725631143977,1.84354827,56099.0,56098.0,0.001636]
[1725631144550,3.82838894,56099.0,56098.0,1e-06]
[1725631144800,1.604506,56092.0,56091.0,0.00164]
[1725631145030,2.17343499,56092.0,56091.0,0.00164]
[1725631145303,2.81099199,56092.0,56091.0,0.00164]
[1725631145540,4.29022033,56092.0,56091.0,1e-06]
[1725631145764,4.10109313,56092.0,56091.0,1e-06]
[1725631146006,1.971129,56090.0,56089.0,0.45386292]
[1725631146264,1.971129,56090.0,56089.0,0.35871416]
[1725631146265,2.19370795,56090.0,56089.0,0.35871416]
[1725631146500,3.35206584,56090.0,56089.0,0.14565959]
[1725631146761,1.248348,56074.0,56065.0,0.00164]
[1725631146998,1.82013846,56074.0,56065.0,0.00164]
[1725631147453,2.20476192,56074.0,56065.0,0.00164]
[1725631147948,2.72873292,56074.0,56065.0,0.00164]
[1725631148190,2.349701,56066.0,56065.0,0.00164]
[1725631148429,1.605447,56059.0,56058.0,1e-08]
[1725631148668,2.0796234,56059.0,56058.0,1e-08]
[1725631148920,2.20758178,56059.0,56058.0,1e-08]
[1725631149404,2.89364778,56059.0,56058.0,1e-08]
[1725631149660,2.53888178,56059.0,56058.0,1e-08]
[1725631149905,2.49388178,56059.0,56058.0,1e-08]
[1725631150153,0.01,56057.0,56056.0,0.00164]
[1725631150377,0.01,56057.0,56034.0,0.15604]
[1725631150378,0.535302,56043.0,56035.0,0.52650515]
[1725631150625,1.37870883,56043.0,56035.0,0.52650515]
[1725631150846,1.37870883,56043.0,56034.0,0.15604]
[1725631151076,1.40667506,56043.0,56034.0,0.15604]
[1725631152259,1.04980706,56043.0,56034.0,0.00164]
[1725631152506,1.04980706,56043.0,56039.0,0.1574]
[1725631152741,1.02013623,56043.0,56039.0,0.1574]
[1725631152976,0.02796623,56043.0,56040.0,0.1273]
[1725631153206,0.20640023,56043.0,56040.0,0.1273]
[1725631153456,0.02796623,56043.0,56040.0,0.1273]
[1725631153693,0.92013623,56043.0,56040.0,0.1273]
[1725631153924,0.02781835,56043.0,56040.0,0.305743]
[1725631154175,0.56312035,56043.0,56040.0,0.1273]
[1725631154427,0.20625235,56043.0,56040.0,0.1273]
[1725631154887,0.56312035,56043.0,56040.0,0.1273]
[1725631156746,0.91998835,56043.0,56040.0,0.1273]
[1725631156977,0.56312035,56043.0,56040.0,0.1273]
[1725631157198,1.30652718,56043.0,56040.0,0.1273]
[1725631157428,1.30652718,56043.0,56039.0,0.1574]
[1725631158176,1.61548036,56043.0,56039.0,0.1574]
[1725631158389,1.25861236,56043.0,56039.0,0.1574]
[1725631158617,0.94965918,56043.0,56040.0,0.05]
[1725631158841,0.56312035,56043.0,56040.0,0.05]
[1725631159065,0.91998835,56043.0,56040.0,0.05]
[1725631159572,1.22894153,56043.0,56040.0,0.05]
[1725631160042,1.61548036,56043.0,56040.0,0.05]
[1725631160267,0.91998835,56043.0,56040.0,0.05]
[1725631160515,0.02781835,56043.0,56042.0,0.03306439]
[1725631160777,0.02781835,56043.0,56042.0,1.01107786]
[1725631161053,0.56312035,56043.0,56042.0,0.3002549]
[1725631161282,0.56312035,56043.0,56042.0,0.0110549]
[1725631161283,1.27870883,56043.0,56042.0,0.0110549]
[1725631162251,1.58766201,56043.0,56042.0,0.0110549]
[1725631162975,1.59861105,56043.0,56042.0,0.0110549]
[1725631163220,2.21587905,56043.0,56042.0,0.0110549]
[1725631164173,2.34567905,56043.0,56042.0,0.0110549]
[1725631164432,2.35567905,56043.0,56042.0,0.0110549]
[1725631164704,2.35567905,56043.0,56041.0,9e-07]
[1725631164705,1.635937,56042.0,56041.0,9e-07]
[1725631164992,1.635937,56042.0,56021.0,0.1615]
[1725631164993,0.535378,56035.0,56027.0,0.52650515]
[1725631165249,2.04547545,56035.0,56027.0,0.52650515]
[1725631165475,2.04547545,56035.0,56021.0,0.1615]
[1725631167186,1.68855645,56035.0,56021.0,0.1615]
[1725631167285,1.68855645,56035.0,56018.0,0.1253]
[1725631167286,1.69967443,56035.0,56033.0,0.1546]
[1725631167539,0.93380225,56035.0,56033.0,0.1546]
[1725631167782,1.24275543,56035.0,56033.0,0.2772]
[1725631168048,1.24275543,56035.0,56033.0,0.1546]
[1725631168310,0.87471845,56035.0,56033.0,0.1546]
[1725631168554,0.178459,56035.0,56033.0,0.1546]
[1725631169284,0.892297,56035.0,56033.0,0.1546]
[1725631169541,1.28016059,56035.0,56033.0,0.1546]
[1725631169792,1.28016059,56035.0,56027.0,0.1557]
[1725631170032,0.92324159,56035.0,56027.0,0.1557]
[1725631170515,0.178459,56035.0,56028.0,0.178481]
[1725631170760,0.178459,56035.0,56027.0,0.1557]
[1725631171017,0.535378,56035.0,56028.0,0.178479]
[1725631171257,0.892297,56035.0,56027.0,0.1557]
[1725631171499,0.92324159,56035.0,56027.0,0.1557]
[1725631172452,0.535378,56035.0,56027.0,0.1557]
[1725631172679,0.92324159,56035.0,56027.0,0.1557]
[1725631173904,0.66477689,56035.0,56027.0,0.1557]
[1725631174177,0.01101112,56039.0,56034.0,0.27734]
[1725631174446,0.01101112,56039.0,56035.0,0.03130283]
[1725631174764,0.03366,56040.0,56039.0,0.178447]
[1725631174932,0.03366,56040.0,56039.0,0.1631]
[1725631175176,0.03366,56040.0,56039.0,0.341547]
[1725631175446,0.03366,56040.0,56039.0,1.73013996]
[1725631175682,0.03366,56040.0,56039.0,1.90770022]
[1725631175934,0.03366,56040.0,56039.0,0.64950726]
[1725631176173,0.03366,56040.0,56039.0,0.2955]
[1725631176401,0.212103,56040.0,56039.0,0.2955]
[1725631176885,0.212103,56040.0,56039.0,0.1631]
[1725631176886,0.56899,56040.0,56039.0,0.1631]
[1725631177131,0.925877,56040.0,56039.0,0.1631]
[1725631177637,0.03366,56040.0,56039.0,0.341547]
[1725631177897,0.56899,56040.0,56039.0,0.1631]
[1725631178137,0.925877,56040.0,56039.0,0.1631]
[1725631178383,0.925877,56040.0,56039.0,0.164734]
[1725631178605,0.56899,56040.0,56039.0,0.164734]
[1725631179348,0.212103,56040.0,56039.0,0.18156428]
[1725631179588,0.212103,56040.0,56039.0,0.164734]
[1725631180310,0.56899,56040.0,56039.0,0.164734]
[1725631180560,0.925877,56040.0,56039.0,0.164734]
[1725631181018,0.56899,56040.0,56039.0,0.164734]
[1725631181243,0.03366,56040.0,56039.0,0.1812074]
[1725631181975,0.212103,56040.0,56039.0,0.1812074]
[1725631182201,0.390547,56040.0,56039.0,0.164734]
[1725631182474,0.212103,56040.0,56039.0,0.164734]
[1725631182953,0.56899,56040.0,56039.0,0.164734]
[1725631183213,0.212103,56040.0,56039.0,0.164734]
[1725631183446,0.925877,56040.0,56039.0,0.164734]
[1725631184193,0.925877,56040.0,56039.0,0.001634]
[1725631184194,1.31291245,56040.0,56039.0,0.001634]
[1725631184443,1.38188579,56040.0,56039.0,0.001634]
[1725631184701,1.3240413,56040.0,56039.0,0.001634]
[1725631185238,0.93700585,56040.0,56039.0,0.001634]
[1725631185489,0.03366,56040.0,56039.0,0.808575]
[1725631185728,0.03366,56040.0,56039.0,1.64426746]
[1725631185941,0.03366,56040.0,56039.0,0.93047946]
[1725631186913,0.03366,56040.0,56039.0,1.28737346]
[1725631187177,0.03366,56040.0,56039.0,1.82977842]
[1725631187631,0.03366,56040.0,56039.0,1.83177842]
[1725631187852,0.03366,56040.0,56039.0,1.82977842]
[1725631188085,0.03366,56040.0,56039.0,1.47288442]
[1725631188351,0.03344523,56040.0,56039.0,0.93047946]
[1725631188571,0.03344523,56040.0,56039.0,0.39513846]
[1725631189057,0.21188823,56040.0,56039.0,0.151934]
[1725631189287,0.59892368,56040.0,56039.0,0.001634]
[1725631189532,1.31269768,56040.0,56039.0,0.001634]
[1725631190966,1.43489768,56040.0,56039.0,0.001634]
[1725631191200,1.22382645,56040.0,56039.0,0.001634]
[1725631191451,1.40226945,56040.0,56039.0,0.001634]
[1725631191944,1.28006945,56040.0,56039.0,0.001634]
[1725631192711,1.63695645,56040.0,56039.0,0.001634]
[1725631192939,1.28006945,56040.0,56039.0,0.001634]
[1725631197261,1.33180791,56040.0,56039.0,0.001634]
[1725631197490,1.43806945,56040.0,56039.0,0.001634]
[1725631197723,2.02235645,56040.0,56039.0,0.001634]
[1725631197955,1.74306785,56040.0,56039.0,0.001634]
[1725631198179,1.74306874,56040.0,56039.0,0.001634]
[1725631198663,2.09995574,56040.0,56039.0,0.001634]
[1725631198923,2.12583337,56040.0,56039.0,0.001634]
[1725631199204,2.12583337,56040.0,56034.0,0.00164]
[1725631199205,0.894297,56035.0,56034.0,0.00164]
[1725631199445,4.12463561,56035.0,56034.0,0.00164]
[1725631199680,2.59261568,56035.0,56034.0,0.00164]
[1725631199942,2.70393283,56035.0,56034.0,0.00164]
[1725631200165,2.70393192,56035.0,56034.0,0.00164]
[1725631200444,0.635378,56035.0,56034.0,0.16334]
[1725631200653,0.635378,56035.0,56034.0,0.00164]
[1725631200654,0.20940359,56035.0,56034.0,0.00164]
[1725631200883,0.07838691,56040.0,56034.0,0.00164]
[1725631200884,0.05171522,56037.0,56034.0,0.180102]
[1725631201115,0.356919,56035.0,56034.0,0.00164]
[1725631201351,1.71671285,56035.0,56034.0,0.00164]
[1725631201591,2.28402583,56035.0,56034.0,0.00164]
[1725631201823,0.70126,56016.0,56015.0,0.0110505]
[1725631202058,2.8921752,56016.0,56015.0,0.0110505]
[1725631202296,2.8921752,56016.0,56001.0,0.00164]
[1725631202297,0.01,56005.0,56001.0,0.00164]
[1725631202547,0.535789,55992.0,55991.0,0.52650515]
[1725631202781,1.70005313,55992.0,55991.0,0.52650515]
[1725631203033,1.70005313,55992.0,55985.0,0.00164]
[1725631203034,1.737958,55989.0,55985.0,0.00164]
[1725631203264,4.59698376,55989.0,55985.0,0.00164]
[1725631203499,2.15644302,55989.0,55988.0,1e-08]
[1725631203734,0.993032,55989.0,55988.0,1e-08]
[1725631203970,0.84477218,55989.0,55988.0,1e-08]
[1725631204201,1.59747394,55989.0,55988.0,1e-08]
[1725631204428,1.59747394,55989.0,55985.0,0.00164]
[1725631204429,0.535837,55987.0,55985.0,0.00164]
[1725631204661,0.535848,55986.0,55985.0,0.00164]
[1725631204888,1.34078748,55986.0,55985.0,0.00164]
[1725631205135,2.05525148,55986.0,55985.0,0.00164]
[1725631205374,2.05525148,55986.0,55962.0,0.2765]
[1725631205375,0.97518236,55979.0,55962.0,0.2765]
[1725631205754,1.20239818,55963.0,55962.0,0.1548]
[1725631205849,0.84502018,55963.0,55962.0,0.1548]
[1725631206092,0.84502018,55963.0,55947.0,0.01678848]
[1725631206093,0.536211,55948.0,55947.0,0.01678848]
[1725631206329,0.1,55963.0,55948.0,0.1548]
[1725631206579,0.01,55971.0,55948.0,0.1548]
[1725631206580,0.1,55962.0,55948.0,0.1548]
[1725631206808,0.536202,55949.0,55948.0,0.1548]
[1725631207042,0.536202,55949.0,55947.0,0.01678848]
[1725631207043,0.178737,55948.0,55947.0,0.01678848]
[1725631207292,0.178737,55948.0,55945.0,0.09214917]
[1725631207293,0.53623,55946.0,55945.0,0.09214917]
[1725631207538,0.329191,55931.0,55928.0,0.01]
[1725631207791,0.1504,55907.0,55886.0,0.1548]
[1725631208024,0.178929,55888.0,55886.0,0.1548]
[1725631208514,0.357808,55896.0,55891.0,0.00164]
[1725631208767,0.536863,55880.0,55877.0,0.1595]
[1725631209007,0.01,55885.0,55877.0,0.1571212]
[1725631209253,0.01,55891.0,55874.0,0.1325549]
[1725631209254,0.01,55896.0,55885.0,0.01]
[1725631209528,0.02,55919.0,55895.0,0.01]
[1725631209774,0.02,55919.0,55888.0,0.45072292]
[1725631209775,0.52650515,55913.0,55900.0,0.01]
[1725631210009,0.52650515,55913.0,55896.0,0.31637761]
[1725631210010,0.46072292,55919.0,55902.0,0.01]
[1725631210246,0.367657,55920.0,55896.0,0.31280096]
[1725631210247,0.45072292,55906.0,55896.0,0.29941096]
[1725631210482,0.1889,55897.0,55896.0,0.1239]
[1725631210718,0.01,55897.0,55896.0,0.1239]
[1725631210954,0.1215,55913.0,55896.0,0.1239]
[1725631210955,0.01,55899.0,55896.0,0.1239]
[1725631211431,0.01,55889.0,55886.0,0.1239]
[1725631211710,0.05281428,55898.0,55886.0,0.1239]
[1725631211711,0.190932,55887.0,55886.0,0.1239]
[1725631211963,0.190932,55887.0,55880.0,0.1578]
[1725631211964,0.01,55885.0,55880.0,0.1578]
[1725631212468,0.012,55888.0,55874.0,0.0110549]
[1725631212469,0.01,55880.0,55874.0,0.0110549]
[1725631212726,0.178966,55877.0,55874.0,0.0110549]
[1725631212994,0.002,55876.0,55874.0,0.0110549]
[1725631213237,0.01,55877.0,55874.0,0.0110549]
[1725631213504,0.01,55879.0,55874.0,0.0110549]
[1725631213768,1.00763392,55875.0,55874.0,0.0110549]
[1725631214017,1.78201227,55875.0,55874.0,0.0110549]
[1725631214252,1.88201227,55875.0,55874.0,0.0110549]
[1725631214484,0.01,55875.0,55874.0,0.1688549]
[1725631214719,1.42407127,55875.0,55874.0,0.0110549]
[1725631214979,1.52407127,55875.0,55874.0,0.0110549]
[1725631215222,1.88201227,55875.0,55874.0,0.0110549]
[1725631215463,1.89201227,55875.0,55874.0,0.0110549]
[1725631215700,2.28690827,55875.0,55874.0,0.0126909]
[1725631215947,0.71540735,55875.0,55874.0,0.0126909]
[1725631216178,0.97134835,55875.0,55874.0,0.0126909]
[1725631216411,1.78201227,55875.0,55874.0,0.0126909]
[1725631216638,1.88201227,55875.0,55874.0,0.0126909]
[1725631217126,1.88201227,55875.0,55770.0,2.70433752]
[1725631217127,0.537142,55851.0,55850.0,0.16206]
[1725631217392,0.61748374,55851.0,55850.0,0.16206]
[1725631217627,0.557142,55851.0,55850.0,0.16206]
[1725631218337,0.97557874,55851.0,55850.0,0.16206]
[1725631218565,0.557142,55851.0,55850.0,0.16206]
[1725631218820,0.915237,55851.0,55850.0,0.16206]
[1725631219329,1.273332,55851.0,55850.0,0.16206]
[1725631219624,2.86224356,55851.0,55850.0,0.00016]
[1725631219909,0.01,55842.0,55824.0,0.52650515]
[1725631220174,0.557393,55825.0,55824.0,0.52650515]
[1725631220456,0.02,55829.0,55821.0,0.1547]
[1725631220718,0.199137,55823.0,55821.0,0.1547]
[1725631221010,0.915687,55823.0,55818.0,0.0126949]
[1725631221241,1.502062,55823.0,55818.0,0.0126949]
[1725631221470,1.95278492,55823.0,55818.0,0.0126949]
[1725631221702,2.01761713,55823.0,55818.0,0.0126949]
[1725631221975,2.01961713,55823.0,55818.0,0.0126949]
[1725631222281,0.08483221,55823.0,55818.0,0.0126949]
[1725631222538,0.002,55838.0,55818.0,0.0126949]
[1725631222539,0.02,55832.0,55828.0,0.179121]
[1725631222786,0.01,55825.0,55822.0,0.3011]
[1725631223035,0.08467176,55825.0,55822.0,0.3011]
[1725631223316,0.01,55835.0,55834.0,0.537306]
[1725631223553,0.01,55838.0,55837.0,0.179092]
[1725631223784,0.01,55838.0,55837.0,0.1523]
[1725631224551,0.01,55838.0,55831.0,0.358218]
[1725631224552,0.02,55834.0,55831.0,0.1554]
[1725631224871,0.02,55834.0,55818.0,0.0226949]
[1725631224872,0.02,55850.0,55840.0,0.1554]
[1725631225070,0.01,55841.0,55840.0,0.1554]
[1725631225306,0.01,55841.0,55832.0,0.1297]
[1725631225307,0.01,55835.0,55832.0,0.1297]
[1725631225558,0.52850515,55848.0,55824.0,0.1295]
[1725631225559,0.01,55827.0,55824.0,0.1295]
[1725631225783,0.01,55832.0,55824.0,0.1295]
[1725631226020,0.01,55836.0,55826.0,0.1547]
[1725631226324,0.01862465,55841.0,55826.0,0.333828]
[1725631226325,0.01,55827.0,55826.0,0.333828]
[1725631226551,0.01,55843.0,55829.0,0.01]
[1725631226793,0.80882392,55851.0,55829.0,0.01]
[1725631226794,0.52650515,55850.0,55834.0,0.01]
[1725631227034,0.01862465,55854.0,55842.0,0.2857]
[1725631227293,0.01,55849.0,55842.0,0.2857]
[1725631227548,0.01,55849.0,55843.0,0.17551096]
[1725631227828,0.01,55849.0,55845.0,0.358129]
[1725631228063,0.01,55855.0,55846.0,0.358126]
[1725631228329,0.01,55855.0,55843.0,0.17551096]
[1725631228330,0.179062,55847.0,55842.0,0.2857]
[1725631228570,0.01,55849.0,55843.0,0.179072]
[1725631228793,0.01,55849.0,55842.0,0.2857]
[1725631229035,0.01,55843.0,55834.0,0.487804]
[1725631229297,0.02,55835.0,55828.0,0.1638]
[1725631229606,0.179118,55829.0,55828.0,0.1638]
[1725631229881,0.179118,55829.0,55826.0,0.00164]
[1725631229882,0.199124,55827.0,55826.0,0.00164]
[1725631230091,0.02,55827.0,55826.0,0.180768]
[1725631230355,0.358208,55834.0,55826.0,0.180768]
[1725631230356,0.01,55828.0,55826.0,0.00164]
[1725631230604,0.01,55833.0,55831.0,0.17911]
[1725631230818,0.01,55830.0,55827.0,0.358248]
[1725631231070,0.01,55830.0,55826.0,0.00164]
[1725631231071,0.179124,55827.0,55826.0,0.00164]
[1725631231309,0.97981244,55827.0,55826.0,0.00164]
[1725631231546,1.69631044,55827.0,55826.0,0.00164]
[1725631231811,2.16655944,55827.0,55826.0,0.00164]
[1725631232042,2.16655944,55827.0,55822.0,0.025]
[1725631232043,0.917687,55823.0,55822.0,0.025]
[1725631232317,0.98251921,55823.0,55822.0,0.025]
[1725631232550,1.34079421,55823.0,55822.0,0.025]
[1725631232824,1.44079421,55823.0,55822.0,0.025]
[1725631233324,0.2856,55830.0,55822.0,0.025]
[1725631233325,0.01,55825.0,55822.0,0.025]
[1725631233585,0.01,55825.0,55822.0,0.17140949]
[1725631233836,0.01,55823.0,55822.0,0.1511]
[1725631234071,0.01,55831.0,55822.0,0.1511]
[1725631234328,0.01,55840.0,55826.0,0.01]
[1725631234559,0.01,55840.0,55833.0,0.358208]
[1725631234794,0.01,55840.0,55835.0,0.358197]
[1725631235048,0.01,55840.0,55832.0,0.1561]
[1725631235049,0.02,55840.0,55832.0,0.1561]
[1725631235294,0.179116,55830.0,55823.0,0.1644]
[1725631235542,0.02,55830.0,55825.0,0.358256]
[1725631235810,0.01,55831.0,55823.0,0.1644]
[1725631236063,0.0626666,55839.0,55834.0,0.159]
[1725631236064,0.01,55839.0,55834.0,0.159]
[1725631236317,0.01,55840.0,55834.0,0.159]
[1725631236583,0.01,55840.0,55839.0,0.179086]
[1725631236861,0.01,55840.0,55834.0,0.159]
[1725631236862,0.01,55839.0,55838.0,0.179089]
[1725631237081,0.02,55853.0,55840.0,0.1227]
[1725631237337,0.00978459,55850.0,55841.0,0.34589155]
[1725631237563,0.00978459,55850.0,55845.0,0.358128]
[1725631237792,0.00978459,55850.0,55849.0,0.179054]
[1725631238059,0.00978459,55850.0,55843.0,0.358142]
[1725631238336,0.00978459,55850.0,55849.0,0.537162]
[1725631238589,0.002,55857.0,55849.0,0.537162]
[1725631238590,0.00978459,55851.0,55849.0,0.358108]
[1725631238835,0.00978459,55851.0,55844.0,0.17551096]
[1725631238836,0.00978459,55851.0,55850.0,0.895255]
[1725631239080,0.00978459,55851.0,55850.0,0.0895255]
[1725631239359,0.00978459,55856.0,55850.0,0.17551096]
[1725631239604,0.00978459,55851.0,55850.0,0.179051]
[1725631239847,0.00978459,55851.0,55850.0,0.537153]
[1725631240362,0.00978459,55851.0,55850.0,0.895255]
[1725631240648,0.00978459,55862.0,55859.0,0.358043]
[1725631240918,0.367969,55871.0,55864.0,0.179006]
[1725631240919,0.00978459,55865.0,55864.0,0.179006]
[1725631241228,0.00978459,55867.0,55864.0,0.1567]
[1725631241430,0.002,55866.0,55864.0,0.1567]
[1725631241665,0.00978459,55867.0,55864.0,0.1567]
[1725631242414,0.01862465,55874.0,55856.0,0.156]
[1725631242415,0.002,55860.0,55856.0,0.156]
[1725631242644,0.01862465,55874.0,55856.0,0.156]
[1725631242645,0.00978459,55882.0,55872.0,0.17898]
[1725631242879,0.00082,55883.0,55874.0,0.536922]
[1725631243167,0.00082,55883.0,55874.0,1.86074455]